fUSD/lending_fUSD_20240821
["ID","MTS","AMOUNT","RATE_DAILY","PERIOD"]
[335498349,1724279596600,7730.64618895,8.219e-05,2]
[335498350,1724279601275,2269.35381105,8.219e-05,2]
[335498351,1724279601294,801.29574997,8.219e-05,2]
[335498388,1724279825005,303.98208233,9.899e-05,2]
[335498391,1724279870051,2995.0076103,9.899e-05,2]
[335498397,1724279881586,5899.7145574,8.219e-05,2]
[335498398,1724279881606,375.59655706,8.219e-05,2]
[335498399,1724279944439,949.71257476,9.899e-05,2]
[335498402,1724280094718,665.2,8.219e-05,2]
[335498404,1724280253908,315.24,9.801e-05,2]
[335498405,1724280254347,7694.25086818,9.801e-05,2]
[335498406,1724280254367,2305.74913182,9.801e-05,2]
[335498407,1724280295932,1148.36,9.895e-05,2]
[335498408,1724280375536,600.0,9.83e-05,2]
[335498409,1724280396922,489.48,9.884e-05,2]
[335498411,1724280417578,5456.41086818,9.851e-05,2]
[335498412,1724280417604,10000.0,9.851e-05,2]
[335498413,1724280417631,5845.98913182,9.851e-05,2]
[335498415,1724280448412,500.0,9.851e-05,2]
[335498416,1724280448762,500.0,9.851e-05,2]
[335498417,1724280449079,500.0,9.851e-05,2]
[335498418,1724280449506,500.0,9.851e-05,2]
[335498419,1724280449818,500.0,9.851e-05,2]
[335498420,1724280450137,500.0,9.851e-05,2]
[335498421,1724280454346,1154.01086818,9.849e-05,2]
[335498422,1724280454367,3494.73913182,9.849e-05,2]
[335498423,1724280476446,160.41714648,9.899e-05,2]
[335498424,1724280477386,1270.01891473,9.884e-05,2]
[335498425,1724280477616,318.553,9.839e-05,2]
[335498426,1724280479673,434.60721071,9.884e-05,2]
[335498427,1724280482626,4321.66459626,9.884e-05,2]
[335498428,1724280482649,10000.0,9.884e-05,2]
[335498429,1724280482669,339.64559881,9.884e-05,2]
[335498430,1724280492216,383.69786065,9.849e-05,2]
[335498431,1724280495030,363.05691439,9.899e-05,2]
[335498432,1724280507088,159.41808301,9.849e-05,2]
[335498433,1724280508932,255.19609183,9.899e-05,2]
[335498434,1724280514175,291.80613083,9.849e-05,2]
[335498435,1724280523019,153.96,9.899e-05,2]
[335498436,1724280523458,1311.43352193,9.849e-05,2]
[335498437,1724280530425,2018.8177,9.813e-05,2]
[335498438,1724280575382,1258.82450873,9.899e-05,2]
[335498439,1724280578498,595.90557673,9.81e-05,2]
[335498440,1724280581634,264.6397361,9.899e-05,2]
[335498441,1724280582654,2603.59827699,9.899e-05,2]
[335498442,1724280582675,10000.0,9.899e-05,2]
[335498443,1724280582697,297.39804877,9.899e-05,2]
[335498444,1724280606985,97082.31954606,0.00013,120]
[335498445,1724280607012,56818.81113771,0.00013,120]
[335498446,1724280607038,17479.44397685,0.00013,120]
[335498447,1724280607061,100000.0,0.00013,120]
[335498448,1724280607083,100000.0,0.00013,120]
[335498449,1724280607106,700000.0,0.00013,120]
[335498450,1724280607131,350000.0,0.00013,120]
[335498451,1724280607167,700000.0,0.00013,120]
[335498452,1724280607193,5000.0,0.00013,120]
[335498453,1724280607239,3000000.0,0.00013,120]
[335498454,1724280607264,300000.0,0.00013,120]
[335498455,1724280617143,196.56,7.256e-05,2]
[335498456,1724280629185,275.90031149,9.899e-05,2]
[335498467,1724280631546,-250.0,9.913e-05,2]
[335498468,1724280631555,-400.0,9.939e-05,2]
[335498469,1724280631564,-161.69217936,9.939e-05,2]
[335498470,1724280631652,-111.86782064,9.939e-05,2]
[335498471,1724280631663,-159.18846638,9.939e-05,2]
[335498472,1724280631674,-270.26587227,9.939e-05,2]
[335498473,1724280631838,-10108.46762128,9.939e-05,2]
[335498474,1724280631847,-160.63269944,9.988e-05,2]
[335498475,1724280631857,-155.16277264,0.0001,2]
[335498477,1724280631866,-155.0,0.00010009,2]
[335498479,1724280631875,-155.0,0.00010009,2]
[335498481,1724280631888,-155.0,0.00010026,2]
[335498483,1724280631897,-665.2,0.0001047,2]
[335498485,1724280631906,-6030.78571578,0.00010713,2]
[335498487,1724280631916,-159.94955371,0.00010798,2]
[335498489,1724280631928,-140.05044629,0.00010798,2]
[335498491,1724280631938,-300.0,0.00010798,2]
[335498493,1724280631947,-633.79355,0.0001089,2]
[335498495,1724280631956,-471.91952,0.0001089,2]
[335498497,1724280631966,-160.53783796,0.00010899,2]
[335498499,1724280631975,-160.53783796,0.000109,2]
[335498501,1724280631985,-160.53783796,0.000109,2]
[335498502,1724280631994,-971.62296983,0.000109,2]
[335498503,1724280632005,-479.34948498,0.000109,2]
[335498504,1724280634421,1311.00512263,9.899e-05,2]
[335498505,1724280637604,-1725.0,9.941e-05,2]
[335498506,1724280637613,-1968.47478365,0.000109,2]
[335498507,1724280637623,-383.04992826,0.000109,2]
[335498508,1724280637635,-322.80089988,0.000109,2]
[335498509,1724280637645,-1740.77438821,0.000109,2]
[335498510,1724280637656,-464.04612,0.000109,2]
[335498511,1724280637700,-415.43778973,0.000109,2]
[335498512,1724280637713,-2393.83199398,0.000109,2]
[335498513,1724280637798,-47911.42105455,0.000109,2]
[335498514,1724280637808,-150.0,0.0001092,2]
[335498515,1724280637817,-163.61,0.00010959,2]
[335498516,1724280637826,-172.62,0.00010959,2]
[335498517,1724280637835,-197.1386879,0.00010989,2]
[335498518,1724280637844,-218.92791442,0.00010993,2]
[335498519,1724280637854,-150.0,0.00010995,2]
[335498520,1724280637863,-150.0,0.00010995,2]
[335498521,1724280637872,-215.29269057,0.00010995,2]
[335498522,1724280637881,-150.0,0.00010996,2]
[335498523,1724280637891,-150.0,0.00010996,2]
[335498524,1724280637900,-150.0,0.00010996,2]
[335498526,1724280637909,-150.0,0.00010997,2]
[335498528,1724280637918,-150.0,0.00010997,2]
[335498530,1724280637928,-150.0,0.00010997,2]
[335498532,1724280637937,-500.0,0.00010997,2]
[335498534,1724280637947,-500.0,0.00010997,2]
[335498536,1724280637957,-500.0,0.00010997,2]
[335498538,1724280637966,-500.0,0.00010997,2]
[335498540,1724280637975,-500.0,0.00010997,2]
[335498542,1724280637984,-500.0,0.00010997,2]
[335498544,1724280637993,-500.0,0.00010997,2]
[335498546,1724280638002,-500.0,0.00010997,2]
[335498548,1724280638012,-500.0,0.00010997,2]
[335498550,1724280638021,-257.77400698,0.00010997,2]
[335498553,1724280638038,-500.0,0.00010997,2]
[335498555,1724280638048,-500.0,0.00010997,2]
[335498557,1724280638057,-500.0,0.00010997,2]
[335498558,1724280638066,-500.0,0.00010997,2]
[335498559,1724280638076,-500.0,0.00010997,2]
[335498560,1724280638085,-500.0,0.00010997,2]
[335498561,1724280638094,-500.0,0.00010997,2]
[335498562,1724280638103,-500.0,0.00010997,2]
[335498563,1724280638113,-500.0,0.00010997,2]
[335498564,1724280638122,-500.0,0.00010997,2]
[335498565,1724280638132,-500.0,0.00010997,2]
[335498566,1724280638145,-525.0,0.00010997,2]
[335498567,1724280638154,-318.03109629,0.00010997,2]
[335498568,1724280638163,-500.0,0.00010997,2]
[335498569,1724280638172,-500.0,0.00010997,2]
[335498570,1724280638181,-500.0,0.00010997,2]
[335498571,1724280638191,-500.0,0.00010997,2]
[335498572,1724280638200,-500.0,0.00010997,2]
[335498573,1724280638209,-500.0,0.00010997,2]
[335498574,1724280638219,-500.0,0.00010997,2]
[335498575,1724280638228,-500.0,0.00010997,2]
[335498576,1724280638237,-380.26196918,0.00010997,2]
[335498577,1724280638246,-500.0,0.00010997,2]
[335498578,1724280638255,-500.0,0.00010997,2]
[335498579,1724280638264,-500.0,0.00010997,2]
[335498580,1724280638274,-500.0,0.00010997,2]
[335498581,1724280638283,-500.0,0.00010997,2]
[335498582,1724280638292,-500.0,0.00010997,2]
[335498583,1724280638301,-500.0,0.00010997,2]
[335498584,1724280638310,-500.0,0.00010997,2]
[335498585,1724280638319,-500.0,0.00010997,2]
[335498586,1724280638328,-500.0,0.00010997,2]
[335498587,1724280638338,-500.0,0.00010997,2]
[335498588,1724280638503,-500.0,0.00010997,2]
[335498589,1724280638514,-500.0,0.00010997,2]
[335498590,1724280638523,-42691.0278364,0.00010997,2]
[335498591,1724280638533,-2172.3030907,0.00010997,2]
[335498592,1724280638543,-4057.7160494,0.00010997,2]
[335498593,1724280638555,-150.0,0.00010998,2]
[335498594,1724280638564,-150.0,0.00010998,2]
[335498595,1724280638574,-150.0,0.00010998,2]
[335498596,1724280638584,-6269.8084455,0.00010998,2]
[335498597,1724280638597,-483.80796788,0.00010998,2]
[335498598,1724280640139,-454.75953035,0.00010989,2]
[335498599,1724280640150,-772658.89564806,0.00010998,2]
[335498600,1724280640160,-216.73934743,0.00010999,2]
[335498601,1724280640169,-546.0,0.00011,2]
[335498602,1724280640178,-203888.93997697,0.00011,2]
[335498603,1724280640188,-2159170.34691235,0.00011,2]
[335498631,1724280659138,19456.90617351,0.00012,120]
[335498633,1724280735268,651.18,8.49e-05,2]
[335498635,1724280758479,500.0,8.49e-05,2]
[335498636,1724280758847,500.0,8.49e-05,2]
[335498637,1724280759162,500.0,8.49e-05,2]
[335498638,1724280759492,500.0,8.49e-05,2]
[335498639,1724280759834,500.0,8.49e-05,2]
[335498640,1724280760158,500.0,8.49e-05,2]
[335498641,1724280760744,500.0,8.49e-05,2]
[335498642,1724280761111,500.0,8.49e-05,2]
[335498643,1724280761423,500.0,8.49e-05,2]
[335498644,1724280761745,500.0,8.49e-05,2]
[335498645,1724280762441,500.0,8.49e-05,2]
[335498646,1724280762772,500.0,8.49e-05,2]
[335498647,1724280763084,500.0,8.49e-05,2]
[335498648,1724280763466,500.0,8.49e-05,2]
[335498649,1724280763798,500.0,8.49e-05,2]
[335498650,1724280764373,500.0,8.49e-05,2]
[335498651,1724280764701,500.0,8.49e-05,2]
[335498652,1724280765017,500.0,8.49e-05,2]
[335498653,1724280765668,500.0,8.49e-05,2]
[335498654,1724280766009,500.0,8.49e-05,2]
[335498655,1724280766342,500.0,8.49e-05,2]
[335498656,1724280766666,500.0,8.49e-05,2]
[335498657,1724280766997,500.0,8.49e-05,2]
[335498658,1724280767338,500.0,8.49e-05,2]
[335498659,1724280767648,500.0,8.49e-05,2]
[335498660,1724280767973,500.0,8.49e-05,2]
[335498661,1724280768304,500.0,8.49e-05,2]
[335498662,1724280768654,500.0,8.49e-05,2]
[335498663,1724280769366,500.0,8.49e-05,2]
[335498664,1724280769652,512.0,8.49e-05,2]
[335498676,1724280886289,172.24648989,5e-05,2]
[335498680,1724280922349,3073.58430273,8.49e-05,2]
[335498682,1724280929104,159.19741528,5e-05,2]
[335498683,1724280935398,1269.04856902,5e-05,2]
[335498684,1724280939651,11899.31493316,5e-05,2]
[335498685,1724280940196,307.97477197,5e-05,2]
[335498686,1724280940241,693.81147751,5e-05,2]
[335498687,1724280944194,561.60120989,5e-05,2]
[335498689,1724280970859,1074.01406395,6.061e-05,2]
[335498690,1724280978003,693.04173611,6.061e-05,2]
[335498691,1724280991047,347.86651899,6.061e-05,2]
[335498692,1724280991105,159.96234262,6.061e-05,2]
[335498696,1724281123366,431.47711872,7.347e-05,2]
[335498698,1724281220015,6245.982837,8.905e-05,2]
[335498699,1724281220036,13498.93743162,8.905e-05,2]
[335498700,1724281240642,642.57,8.219e-05,2]
[335498702,1724281291867,196.56,6.975e-05,2]
[335498704,1724281314132,250.0,9.733e-05,2]
[335498705,1724281330749,4482.2764,9.888e-05,2]
[335498706,1724281331257,693.09243413,6.975e-05,2]
[335498707,1724281333058,9783.47012848,6.975e-05,2]
[335498708,1724281359291,291.36870266,6.975e-05,2]
[335498709,1724281360207,20410.02713101,6.975e-05,2]
[335498710,1724281406660,3439.30990403,8.454e-05,2]
[335498711,1724281419823,779.18,9.795e-05,2]
[335498714,1724281469090,211.47,9.75e-05,2]
[335498715,1724281513492,150.0,9.888e-05,2]
[335498716,1724281534056,200.0,9.813e-05,2]
[335498720,1724281667334,218.84,9.749e-05,2]
[335498721,1724281698504,663.89,8.219e-05,2]
[335498722,1724281724570,2006.26,9.762e-05,2]
[335498723,1724281744536,4917.78,9.725e-05,2]
[335498724,1724281781050,196.56,7.024e-05,2]
[335498725,1724281799609,762.94,9.808e-05,2]
[335498726,1724281806764,250.0,9.805e-05,2]
[335498735,1724281831726,-300.0,9.935e-05,2]
[335498736,1724281831735,-939.39805608,9.936e-05,2]
[335498737,1724281831747,-251.03914311,9.936e-05,2]
[335498738,1724281831758,-22709.56280081,9.936e-05,2]
[335498739,1724281831768,-176.15632561,9.945e-05,2]
[335498740,1724281831777,-199.28,9.955e-05,2]
[335498741,1724281831788,-509.58,9.966e-05,2]
[335498742,1724281831797,-1000.0,9.996e-05,2]
[335498743,1724281831806,-230.32652199,0.0001,2]
[335498744,1724281831816,-1050.0,0.0001,2]
[335498745,1724281831825,-308.95974444,0.0001,2]
[335498746,1724281831835,-150.99,0.0001,2]
[335498747,1724281831844,-200.0,0.0001,3]
[335498748,1724281831854,-500.0,0.000101,3]
[335498749,1724281831863,-880.61,0.000101,2]
[335498750,1724281831872,-828.3,0.000101,2]
[335498751,1724281831882,-700.0,0.000102,3]
[335498752,1724281831891,-1000.0,0.000103,3]
[335498753,1724281831900,-1300.0,0.000104,3]
[335498754,1724281831910,-663.89,0.00010464,2]
[335498755,1724281831920,-200.0,0.000105,3]
[335498756,1724281831929,-3033.53018522,0.00010505,2]
[335498757,1724281831939,-1739.7277323,0.00010566,2]
[335498758,1724281831948,-200.0,0.000106,3]
[335498759,1724281831957,-2843.43146538,0.00010699,2]
[335498760,1724281831966,-200.0,0.000107,3]
[335498761,1724281831976,-150.0,0.00010798,2]
[335498762,1724281831985,-962.80465455,0.00010799,2]
[335498764,1724281831995,-962.80465455,0.00010799,2]
[335498765,1724281832005,-200.0,0.000108,3]
[335498767,1724281832014,-600.79792946,0.00010852,2]
[335498769,1724281832028,-328.27252306,0.00010861,2]
[335498771,1724281832038,-155.0,0.00010861,2]
[335498773,1724281832048,-163.40966143,0.00010861,2]
[335498775,1724281832057,-313.30908928,0.00010862,2]
[335498777,1724281832068,-236.36319912,0.00010888,2]
[335498779,1724281832078,-164.41632778,0.00010888,2]
[335498781,1724281832087,-166.36581146,0.00010888,2]
[335498783,1724281832098,-6135.35461983,0.0001089,2]
[335498785,1724281832107,-633.79355,0.0001089,2]
[335498788,1724281832116,-181.59943,0.0001089,2]
[335498791,1724281832126,-529.06840351,0.0001089,2]
[335498793,1724281832135,-155.0,0.0001089,2]
[335498795,1724281832144,-155.0,0.00010899,2]
[335498797,1724281832155,-155.0,0.00010899,2]
[335498798,1724281832164,-1288.7036,0.000109,2]
[335498800,1724281832174,-12443.23524345,0.000109,2]
[335498803,1724281832195,-364.67036088,0.000109,2]
[335498806,1724281832214,-7011.24858087,0.000109,2]
[335498807,1724281832226,-283.76013979,0.000109,2]
[335498808,1724281832245,-5772.57053668,0.000109,2]
[335498809,1724281832257,-5286.32213833,0.000109,2]
[335498810,1724281832266,-3099.29251565,0.000109,2]
[335498811,1724281832293,-2127.91,0.000109,2]
[335498814,1724281837785,-24933.56678435,0.000109,2]
[335498815,1724281837794,-736.5947,0.000109,2]
[335498816,1724281837803,-172.00474582,0.000109,2]
[335498817,1724281837812,-393.19554655,0.000109,2]
[335498818,1724281837821,-633.79355,0.000109,2]
[335498819,1724281837830,-750.0,0.000109,3]
[335498820,1724281837839,-166.31999249,0.000109,2]
[335498821,1724281837848,-464.04612,0.000109,2]
[335498822,1724281837858,-980.33201672,0.000109,2]
[335498823,1724281837866,-626.7539243,0.000109,2]
[335498824,1724281837876,-1149.14978478,0.000109,2]
[335498825,1724281837885,-174.90327437,0.000109,2]
[335498826,1724281837895,-420.0,0.00010928,2]
[335498827,1724281837904,-633.79355,0.0001094,2]
[335498828,1724281837915,-471.91952,0.0001095,2]
[335498829,1724281837924,-178.62,0.00010959,2]
[335498830,1724281837933,-157.51,0.00010959,2]
[335498831,1724281837942,-535.86,0.00010959,2]
[335498832,1724281837952,-250.0,0.00010959,2]
[335498833,1724281837962,-155.84,0.00010959,2]
[335498834,1724281837972,-287.31,0.00010959,2]
[335498835,1724281837981,-218.84,0.00010968,2]
[335498836,1724281837990,-200.0,0.00010973,2]
[335498837,1724281837999,-633.79355,0.0001098,2]
[335498838,1724281838008,-9880.06593372,0.00010987,2]
[335498839,1724281838018,-454.75953035,0.00010989,2]
[335498840,1724281838031,-3141.5513941,0.00010995,2]
[335498842,1724281838040,-964.8251263,0.00010995,2]
[335498843,1724281838050,-3585.02349789,0.00010997,2]
[335498844,1724281838059,-500.0,0.00010999,2]
[335498845,1724281838069,-475.0,0.00010999,2]
[335498846,1724281838078,-457.5590107,0.00010999,2]
[335498847,1724281838087,-500.0,0.00010999,2]
[335498848,1724281838096,-500.0,0.00010999,2]
[335498849,1724281838106,-500.0,0.00010999,2]
[335498850,1724281838115,-616.78749934,0.00010999,2]
[335498851,1724281838124,-558.05530461,0.00010999,2]
[335498852,1724281838133,-500.0,0.00010999,2]
[335498853,1724281838143,-538.0,0.00011,2]
[335498858,1724281838282,-216940.98799127,0.00011,2]
[335498860,1724281838294,-8779.34461839,0.00011,2]
[335498861,1724281838321,-425.05336191,0.00011,2]
[335498862,1724281838332,-2033.01980657,0.00011,2]
[335498863,1724281838343,-4888.27761967,0.00011,2]
[335498864,1724281838359,-16828.99211349,0.00011,2]
[335498865,1724281838367,-741.77,0.00011,2]
[335498866,1724281838377,-834.48,0.00011,2]
[335498867,1724281838386,-6014.23,0.00011,2]
[335498868,1724281838395,-844633.19611277,0.00011,2]
[335498869,1724281838406,-498.35828287,0.00011,2]
[335498870,1724281838416,-1291.06,0.00011,2]
[335498871,1724281838427,-400.66006187,0.00011,2]
[335498872,1724281838445,-871.92241822,0.00011,2]
[335498873,1724281838456,-1000.0,0.00011,2]
[335498877,1724281839982,-554.46998931,0.000109,2]
[335498878,1724281839992,-3000956.07473304,0.00011,2]
[335498879,1724281840003,-417515.93093922,0.00011,2]
[335498880,1724281840015,-2971.81674876,0.00011,2]
[335498881,1724281840029,-3455.39202086,0.00011,2]
[335498882,1724281840040,-24929.11631104,0.00011,2]
[335498883,1724281840051,-1777.7292,0.00011,2]
[335498884,1724281840062,-4288.06,0.00011,2]
[335498885,1724281840074,-21256.29782865,0.00011,2]
[335498886,1724281840086,-253.44497898,0.00011,2]
[335498887,1724281840097,-556.86577081,0.00011,2]
[335498888,1724281840110,-329.22203798,0.00011,2]
[335498889,1724281840121,-1720.07733724,0.00011,2]
[335498890,1724281840133,-504.152,0.00011,2]
[335498891,1724281840145,-2750.59999996,0.00011,2]
[335498892,1724281840162,-1335.93812631,0.00010995,2]
[335498893,1724281840172,-285.24212946,0.00010995,2]
[335498894,1724281840184,-20513.92139673,0.00010995,2]
[335498895,1724281840193,-20860.99598502,0.00011,2]
[335498896,1724281840341,-293.59112959,0.00011,2]
[335498897,1724281840356,-2250.36235156,0.00011,2]
[335498898,1724281840367,-1016.89946502,0.00011,2]
[335498899,1724281840386,-137560.34830456,0.00011,2]
[335498900,1724281840397,-2843.51779656,0.00011,2]
[335498901,1724281840408,-3804.28083584,0.00011,2]
[335498902,1724281840419,-884.16644664,0.00011,2]
[335498912,1724281842816,-155.0,0.00010888,2]
[335498914,1724281842826,-56793.75971001,0.00011,2]
[335498927,1724281842933,-3383.00529059,0.00011,2]
[335498928,1724281842945,-4336.95767507,0.00011,2]
[335498929,1724281842956,-446.9595631,0.00011,2]
[335498930,1724281842967,-384.34999965,0.00011,2]
[335498931,1724281843039,-153074.83481633,0.00011,2]
[335498932,1724281843052,-1620.92134787,0.00011,2]
[335498933,1724281843065,-1459.96886164,0.00011,2]
[335498934,1724281843076,-11603.08544988,0.00011,2]
[335498935,1724281843088,-1243.9391314,0.00011,2]
[335498936,1724281843181,-327.12129972,0.00011,2]
[335498937,1724281843193,-360.80937151,0.00011,2]
[335498938,1724281843203,-68781.79175585,0.00011,2]
[335498939,1724281843218,-9250.7235472,0.00011,2]
[335498959,1724281845802,-533.0,0.00011,2]
[335498960,1724281845811,-14.84176427,0.00011,2]
[335498961,1724281845822,-730.3535,0.00011,2]
[335498962,1724281845833,-721.24846233,0.00011,2]
[335498963,1724281845845,-620.1702649,0.00011,2]
[335498964,1724281845858,-660.32229313,0.00011,2]
[335498965,1724281845869,-738.18722843,0.00011,2]
[335498966,1724281845880,-1343.99298,0.00011,2]
[335498967,1724281845958,-1970.16842939,0.00011,2]
[335498968,1724281845969,-1031.19781314,0.00011,2]
[335498969,1724281845992,-1799.29203779,0.00011,2]
[335498970,1724281846027,-684.64657815,0.00011,2]
[335498971,1724281846059,-16116.7258984,0.00011,2]
[335498973,1724281856150,310.0,8.514e-05,2]
[335498978,1724281970498,170.18,9.764e-05,2]
[335498980,1724282187411,651.45,8.219e-05,2]
[335498981,1724282320912,250.0,9.873e-05,2]
[335498982,1724282354058,381.47,9.881e-05,2]
[335498983,1724282582181,305.09961363,9.881e-05,2]
[335498984,1724282586144,5690.02,9.895e-05,2]
[335498985,1724282589553,1311.43352193,9.881e-05,2]
[335498986,1724282596656,959.0,9.881e-05,2]
[335498987,1724282598131,776.67695568,9.881e-05,2]
[335498988,1724282670220,644.69,8.219e-05,2]
[335498989,1724282678054,1218.34788879,9.881e-05,2]
[335498992,1724282714176,150.0,9.888e-05,2]
[335498996,1724282951130,274.8,9.793e-05,2]
[335499007,1724283003035,300.0,9.793e-05,2]
[335499013,1724283031867,-250.0,9.947e-05,2]
[335499014,1724283031877,-188.98,9.999e-05,2]
[335499015,1724283031886,-175.69822379,9.999e-05,2]
[335499016,1724283031896,-300.0,9.999e-05,2]
[335499017,1724283031905,-300.0,9.999e-05,2]
[335499018,1724283031914,-1211.93355993,9.999e-05,2]
[335499019,1724283031923,-302.77,0.0001,2]
[335499020,1724283031932,-1050.0,0.0001,2]
[335499021,1724283031942,-300.0,0.0001,3]
[335499022,1724283031951,-1724.55584436,0.0001,2]
[335499023,1724283031960,-700.0,0.000101,3]
[335499024,1724283031970,-150.0,0.00010107,2]
[335499025,1724283031979,-1100.0,0.000102,3]
[335499026,1724283031988,-2350.16072846,0.000102,2]
[335499027,1724283031999,-458.03927154,0.000102,2]
[335499028,1724283032008,-83.5179048,0.000103,3]
[335499029,1724283032024,-1416.4820952,0.000103,3]
[335499030,1724283032033,-281.65,0.000103,2]
[335499031,1724283032042,-6096.13,0.000103,2]
[335499032,1724283032051,-150.0,0.00010327,2]
[335499033,1724283032060,-1900.0,0.000104,3]
[335499034,1724283032069,-150.0,0.0001047,2]
[335499035,1724283032079,-644.69,0.00010471,2]
[335499036,1724283032089,-499.99,0.00010471,2]
[335499037,1724283032098,-469.97,0.00010471,2]
[335499038,1724283032107,-150.99,0.00010471,2]
[335499039,1724283032116,-150.99,0.00010471,2]
[335499040,1724283032126,-17950.45,0.00010475,2]
[335499041,1724283032135,-3922.97537404,0.00010475,2]
[335499042,1724283032147,-7910.4235858,0.00010475,2]
[335499043,1724283032158,-266.95294903,0.00010475,2]
[335499044,1724283032169,-1000.5000036,0.00010475,2]
[335499045,1724283032180,-2494.4819884,0.00010475,2]
[335499046,1724283032191,-2638.16445635,0.00010475,2]
[335499047,1724283032202,-1292.46164278,0.00010475,2]
[335499048,1724283032211,-300.0,0.000105,3]
[335499049,1724283032220,-150.0,0.00010547,2]
[335499050,1724283032229,-3034.58196902,0.00010566,2]
[335499051,1724283032239,-300.0,0.000106,3]
[335499052,1724283032248,-2843.43146538,0.00010699,2]
[335499053,1724283032257,-300.0,0.000107,3]
[335499054,1724283032267,-224.261,0.00010734,2]
[335499055,1724283032276,-150.0,0.00010767,2]
[335499056,1724283032285,-605.4229,0.0001079,2]
[335499057,1724283032294,-1057.51,0.000108,2]
[335499058,1724283032303,-150.0,0.000108,2]
[335499059,1724283032314,-300.0,0.000108,3]
[335499060,1724283032323,-1000.0,0.00010834,2]
[335499061,1724283032332,-5282.42239687,0.00010835,2]
[335499062,1724283032342,-757.49495438,0.00010861,2]
[335499063,1724283032354,-155.0,0.00010862,2]
[335499064,1724283032363,-155.0,0.00010888,2]
[335499065,1724283032372,-1486.03108436,0.00010888,2]
[335499066,1724283032382,-155.0,0.00010888,2]
[335499067,1724283032392,-156.36720659,0.00010888,2]
[335499069,1724283032405,-1740.25288311,0.00010888,2]
[335499071,1724283032415,-328.52065361,0.00010888,2]
[335499073,1724283032425,-1075.58370706,0.00010888,2]
[335499075,1724283032434,-924.9629068,0.00010888,2]
[335499077,1724283032446,-29636.69799963,0.0001089,2]
[335499079,1724283032456,-420.24527,0.0001089,2]
[335499081,1724283032465,-439.27640021,0.0001089,2]
[335499083,1724283032475,-179.4623719,0.0001089,2]
[335499085,1724283032484,-357.68666439,0.0001089,2]
[335499087,1724283032493,-380.64614024,0.0001089,2]
[335499088,1724283032504,-440.45556798,0.0001089,2]
[335499089,1724283032513,-166.33381801,0.0001089,2]
[335499090,1724283032523,-170.37821239,0.0001089,2]
[335499091,1724283032533,-255.21992957,0.0001089,2]
[335499092,1724283032542,-196.80425984,0.0001089,2]
[335499093,1724283032552,-316.9035925,0.0001089,2]
[335499094,1724283032561,-334.9541,0.00010899,2]
[335499095,1724283032570,-449.0828,0.00010899,2]
[335499096,1724283032580,-454.75953035,0.00010899,2]
[335499097,1724283032589,-236.54141878,0.00010899,2]
[335499098,1724283032599,-330.89872604,0.00010899,2]
[335499099,1724283032609,-788.7556,0.000109,2]
[335499100,1724283032619,-4534.84459588,0.000109,2]
[335499101,1724283032628,-1057.9973,0.000109,2]
[335499102,1724283032638,-1289.7013,0.000109,2]
[335499103,1724283032648,-686.7058,0.000109,2]
[335499104,1724283032659,-3106.9302,0.000109,2]
[335499105,1724283032668,-1563.2312,0.000109,2]
[335499106,1724283032679,-4407.38586152,0.000109,2]
[335499107,1724283032691,-2126.86463848,0.000109,2]
[335499108,1724283032699,-184.82332977,0.000109,2]
[335499109,1724283032709,-506.71175575,0.000109,3]
[335499110,1724283032720,-493.28824425,0.000109,3]
[335499111,1724283032730,-6.63449214,0.000109,2]